[Event "17th Delhi GM Open 2019-B"]
[Site "Delhi"]
[Date "2019.01.10"]
[Round "4"]
[White "Sunil, Garg"]
[Black "Dupit Tabu"]
[Result "0-1"]
[ECO "B80"]
[WhiteElo "1686"]
[BlackElo "1821"]
[Annotator "NA"]
[PlyCount "88"]
[EventDate "2019.01.09"]
[EventType "swiss"]
[EventCountry "IND"]
[SourceTitle "playchess.com"]
[Source "ChessBase"]
[SourceQuality "1"]
[TimeControl "3600+30"]

1. e4 {[%emt 0:00:00]} c5 {[%emt 0:00:00]} 2. Nf3 {[%emt 0:00:00]} d6 {[%emt 0:00:00]} 3. d4 {[%emt 0:00:00]} cxd4 {[%emt 0:00:00]} 4. Nxd4 {[%emt 0:00:00]} Nf6 {[%emt 0:00:00]} 5. Nc3 {[%emt 0:00:00]} a6 {[%emt 0:00:00]} 6. f3 {[%emt 0:00:00]} e6 {[%emt 0:00:00]} 7. Be3 {[%emt 0:00:00]} Qc7 {[%emt 0:00:00]} 8. Qd2 {[%emt 0:00:00]} Bd7 {[%emt 0:00:00] B80: Sicilian Scheveningen: 6 g3 and 6 Be3, including English Attack} (8... h5 9. Be2 Nbd7 10. a4 b6 11. O-O Be7 12. Rfd1 O-O 13. Kh1 Bb7 14. Bg5 Rfe8 15. Qe1 Rac8 16. Qf1 {½-½ (109) Firouzja,A (2572)-Grandelius,N (2652) Sharjah 2018}) 9. O-O-O {[%emt 0:00:00]} b5 {[%emt 0:00:00]} 10. Kb1 {[%emt 0:00:00]} Nc6 {[%emt 0:00:00]} 11. Bd3 $146 {[%emt 0:00:00]} ({Predecessor:} 11. g4 h6 12. Bd3 Ne5 13. Rhe1 Nc4 14. Bxc4 Qxc4 15. h4 b4 16. Nce2 a5 {1-0 (37) Kozionov,K (2440)-Antonov,A (2168) Moscow 2017}) 11... Ne5 {[%emt 0:00:00]} 12. Bxb5 {[%emt 0:00:00]} axb5 {[%emt 0:00:00]} 13. Ndxb5 {[%emt 0:00:00]} Bxb5 {[%emt 0:00:00]} 14. Nxb5 {[%emt 0:00:00]} Qa5 {[%emt 0:00:00]} 15. Qxa5 {[%emt 0:00:00]} Rxa5 {[%emt 0:00:00]} 16. Nxd6+ {[%emt 0:00:00]} Bxd6 {[%emt 0:00:00]} 17. Rxd6 {[%emt 0:00:00]} Nc4 {[%emt 0:00:00]} 18. Rd3 {[%emt 0:00:00]} Nxe3 {[%emt 0:00:00]} 19. Rxe3 {[%emt 0:00:00]} Ke7 {[%emt 0:00:00]} 20. Rd1 {[%emt 0:00:00]} Rha8 {[%emt 0:00:00]} 21. a3 {[%emt 0:00:00]} R5a7 {[%emt 0:00:00]} 22. Red3 $17 {[%emt 0:00:00]} Nd7 {[%emt 0:00:00]} 23. Ka2 {[%emt 0:12:11]} Rc8 {[%emt 0:00:00]} 24. R1d2 {[%emt 0:00:03]} Rac7 {[%emt 0:00:00]} 25. Kb1 {[%emt 0:00:01]} Ne5 {[%emt 0:00:00]} 26. Rb3 {[%emt 0:00:01]} g5 {[%emt 0:00:00]} 27. Rb5 {[%emt 0:00:01]} f6 {[%emt 0:00:00]} 28. b3 {[%emt 0:00:04]} h5 {[%emt 0:00:00]} 29. a4 {[%emt 0:00:01]} Nc6 {[%emt 0:00:00]} 30. Kb2 {[%emt 0:06:37]} e5 {[%emt 0:00:00]} 31. c3 {[%emt 0:00:06]} Nd8 {[%emt 0:00:00]} 32. Rd3 {[%emt 0:00:02]} Ne6 {[%emt 0:00:00]} 33. g3 {[%emt 0:18:08]} g4 {[%emt 0:00:00]} 34. fxg4 {[%emt 0:00:01]} hxg4 {[%emt 0:00:00]} 35. b4 {[%emt 0:00:09]} Ng5 {[%emt 0:00:00]} 36. Re3 {[%emt 0:00:01]} Rc4 {[%emt 0:00:00]} 37. a5 {[%emt 0:11:52]} Nxe4 {[%emt 0:00:00]} 38. a6 {[%emt 0:00:01]} Nd6 {[%emt 0:00:00]} 39. Rb6 {[%emt 0:00:00]} R4c6 {[%emt 0:00:00]} 40. Rxc6 {[%emt 0:03:08]} Rxc6 {[%emt 0:00:00]} 41. Kb3 {[%emt 0:00:06]} Rxa6 {[%emt 0:00:00]} 42. c4 {[%emt 0:00:01]} Ra3+ {[%emt 0:00:00]} 43. Kxa3 {[%emt 0:00:02]} Nxc4+ {[%emt 0:00:00]} 44. Ka4 {[%emt 0:00:00]} Nxe3 {[%emt 0:00:00]} 0-1

[Event "17th Delhi GM Open 2019-B"]
[Site "Delhi"]
[Date "2019.01.10"]
[Round "4"]
[White "Aashman Gupta"]
[Black "Sharsha Backer"]
[Result "0-1"]
[ECO "B21"]
[WhiteElo "1678"]
[BlackElo "1812"]
[Annotator "NA"]
[PlyCount "96"]
[EventDate "2019.01.09"]
[EventType "swiss"]
[EventCountry "IND"]
[SourceTitle "playchess.com"]
[Source "ChessBase"]
[SourceQuality "1"]
[TimeControl "3600+30"]

{[%evp 8,95,43,40,54,46,38,46,54,30,32767,20,16,-3,-2,-14,-11,32767,32767,-27,10,-52,-39,-67,-72,-97,-131,32767,32767,32767,32767,32767,32767,32767,32767,32767,32767,32767,32767,32767,32767,32767,32767,32767,32767,32767,32767,32767,32767,32767,32767,32767,32767,32767,32767,32767,32767,32767,32767,32767,32767,32767,32767,32767,32767,32767,32767,32767,32767,-737,-860,32767,32767,-829,-1046,-923,-1119,-939,-598,-1327,-1272,-29986,-29988,-29988,-29988,-29988,-29989,-29998,-29999,-29999]} 1. e4 {[%emt 0:00:00]} c5 {[%emt 0:00:00]} 2. d4 {[%emt 0:00:00]} cxd4 {[%emt 0:00:00]} 3. c3 {[%emt 0:00:00]} d3 {[%emt 0:00:00]} 4. Bxd3 {[%emt 0:00:00]} Nc6 {[%emt 0:00:00]} 5. Nf3 {[%emt 0:00:00]} d6 {[%emt 0:00:00]} 6. h3 {[%emt 0:00:00]} Nf6 {[%emt 0:00:00]} 7. O-O {[%emt 0:00:00]} g6 {[%emt 0:00:00] LiveBook: 4 Games B21: Sicilian: 2 f4 and Morra Gambit} 8. Be3 {[%emt 0:00:00]} (8. Qe2 Bg7 9. Rd1 Nd7 10. Be3 O-O 11. Nbd2 b6 12. Nd4 Nce5 13. Ba6 Nc5 14. Bxc8 Qxc8 15. N4f3 Nxf3+ 16. Qxf3 {½-½ (37) Petrov,N (2490)-Bernadskiy,V (2549) Riga 2016}) 8... Bg7 {[%emt 0:00:00]} 9. Nbd2 {[%emt 0:00:00]} O-O {[%emt 0:00:00]} 10. Nd4 {[%emt 0:00:00]} e5 {[%emt 0:00:00]} 11. Nxc6 {[%emt 0:00:00]} bxc6 {[%emt 0:00:00]} 12. c4 $146 {[%emt 0:08:16]} ({Predecessor:} 12. Kh1 Qc7 13. f4 Nh5 14. Qf3 Nxf4 15. Bxf4 exf4 16. Qxf4 Be6 17. Nf3 Rac8 18. Ng5 Qe7 19. Nxe6 Qxe6 20. Bc2 Qe5 21. Qxe5 {½-½ (21) Ross,M (1796)-Kluger,N (2198) Bad Woerishofen 2003}) 12... Nh5 {[%emt 0:00:00]} 13. Rc1 {[%emt 0:14:59]} Be6 {[%emt 0:00:00]} 14. Nb3 {[%emt 0:10:50]} (14. Re1 $11) 14... Nf4 {[%emt 0:00:00]} 15. Bxf4 {[%emt 0:10:17]} exf4 {[%emt 0:00:00]} 16. Qe2 {[%emt 0:01:11]} Qg5 {[%emt 0:00:00]} 17. Kh1 {[%emt 0:07:37]} Rab8 {[%emt 0:00:00]} 18. f3 {[%emt 0:05:42]} a5 {[%emt 0:00:00]} 19. Rc2 {[%emt 0:05:22]} Qe5 {[%emt 0:00:00]} 20. Rf2 {[%emt 0:03:18]} Rb4 {[%emt 0:00:00]} 21. Nc1 {[%emt 0:01:31]} Rfb8 {[%emt 0:00:00]} 22. b3 {[%emt 0:00:12]} a4 {[%emt 0:00:00]} 23. Qd2 {[%emt 0:00:43]} axb3 {[%emt 0:00:00]} 24. axb3 {[%emt 0:00:23]} Qg5 {[%emt 0:00:00]} 25. Bf1 {[%emt 0:01:13]} Be5 {[%emt 0:00:00]} 26. Ra2 {[%emt 0:00:17]} c5 {[%emt 0:00:00]} 27. Ra6 {[%emt 0:00:00]} Qg3 {[%emt 0:00:00]} 28. Ra2 {[%emt 0:00:00]} Bd4 {[%emt 0:00:00]} 29. Re2 {[%emt 0:00:00]} Bxh3 {[%emt 0:00:00]} 30. Qe1 {[%emt 0:00:00]} Qg5 {[%emt 0:00:00]} 31. Rad2 {[%emt 0:02:55]} Be6 {[%emt 0:00:00]} 32. Rxd4 {[%emt 0:00:06]} cxd4 {[%emt 0:00:00]} 33. Rd2 {[%emt 0:00:18]} Qf6 {[%emt 0:00:00]} 34. Qf2 {[%emt 0:00:52]} Ra8 {[%emt 0:00:00]} 35. Ra2 {[%emt 0:00:56]} Rbb8 {[%emt 0:00:00]} 36. Bd3 {[%emt 0:00:31]} Rxa2 {[%emt 0:00:00]} 37. Nxa2 {[%emt 0:00:15]} Rxb3 {[%emt 0:00:00]} 38. Nc1 {[%emt 0:00:23]} Rc3 {[%emt 0:00:00]} 39. Qf1 {[%emt 0:00:09]} Qd8 {[%emt 0:00:00]} 40. Na2 {[%emt 0:00:54]} Ra3 {[%emt 0:00:00]} 41. Nb4 {[%emt 0:00:00]} Qa5 {[%emt 0:00:00]} 42. Nc2 {[%emt 0:00:00]} Ra2 {[%emt 0:00:58]} 43. Kh2 {[%emt 0:00:02] [#]} Bxc4 $1 {[%emt 0:00:01]} 44. Nxd4 {[%emt 0:01:34]} Bxd3 {[%emt 0:00:00]} 45. Qxd3 {[%emt 0:00:26]} Qh5+ {[%emt 0:00:09]} 46. Kg1 {[%emt 0:00:11]} Ra1+ {[%emt 0:00:01]} 47. Kf2 {[%emt 0:00:36]} Qh4+ {[%emt 0:00:00]} 48. Ke2 {[%emt 0:00:05]} Qe1# {[%emt 0:00:07]} 0-1